[Event "LAT-ch Women 2017"]
[Site "Riga"]
[Date "2017.10.06"]
[Round "2"]
[White "Ivanova, Katrina Telma"]
[Black "Osobskaja, Zinaida"]
[Result "0-1"]
[ECO "B42"]
[WhiteElo "1306"]
[BlackElo "1646"]
[Annotator "NA RC"]
[PlyCount "105"]
[EventDate "2017.??.??"]
[EventType "swiss"]
[EventCountry "LAT"]
[SourceTitle "playchess.com"]
[Source "ChessBase"]
[SourceQuality "1"]
[TimeControl "5400+30"]

1. e4 {[%emt 0:00:00]} c5 {[%emt 0:00:16]} 2. Nf3 {[%emt 0:00:00]} e6 {[%emt 0:00:29]} 3. d4 cxd4 {[%emt 0:00:09]} 4. Nxd4 {[%emt 0:00:26]} a6 {[%emt 0:01:04]} 5. Bd3 {[%emt 0:01:37]} Nc6 {[%emt 0:00:28]} 6. Nxc6 dxc6 {[%emt 0:02:16]} 7. O-O {[%emt 0:03:39]} b5 {[%emt 0:04:38]} 8. a4 {[%emt 0:07:28]} Bd7 {[%emt 0:00:59]} 9. axb5 {[%emt 0:05:31]} axb5 {[%emt 0:01:34]} 10. Rxa8 {[%emt 0:00:45]} Qxa8 {[%emt 0:00:03]} 11. e5 {[%emt 0:05:39]} Ne7 {[%emt 0:00:46]} 12. Qe2 {[%emt 0:19:19]} Nd5 {[%emt 0:07:10]} 13. c4 {[%emt 0:10:16]} bxc4 {[%emt 0:00:23]} 14. Bxc4 {[%emt 0:00:49]} Be7 {[%emt 0:00:41]} 15. Qg4 {[%emt 0:05:04]} Kf8 {[%emt 0:00:35]} 16. Rd1 {[%emt 0:04:29]} h5 {[%emt 0:11:46]} 17. Qf3 {[%emt 0:02:46]} Qb8 {[%emt 0:01:03]} 18. Re1 {[%emt 0:03:29]} g6 {[%emt 0:12:32]} 19. Nc3 {[%emt 0:04:04]} Qb4 {[%emt 0:02:20]} 20. Bxd5 {[%emt 0:02:46]} cxd5 {[%emt 0:00:26]} 21. Rd1 {[%emt 0:01:16]} Qb8 {[%emt 0:01:30]} 22. Re1 {[%emt 0:09:19]} Kg7 {[%emt 0:01:05]} 23. Qh3 {[%emt 0:06:10]} Qc7 {[%emt 0:01:47]} 24. Qf3 {[%emt 0:02:34]} Qc4 {[%emt 0:02:23]} 25. Qe2 Qxe2 {[%emt 0:02:34]} 26. Nxe2 {[%emt 0:01:49]} Rb8 {[%emt 0:00:49]} 27. Nd4 {[%emt 0:01:26]} Rb4 {[%emt 0:07:48]} 28. Nc2 {[%emt 0:00:52]} Rc4 {[%emt 0:01:34]} 29. Ne3 {[%emt 0:00:27]} Rb4 {[%emt 0:04:00]} 30. g3 {[%emt 0:01:00]} Ba4 {[%emt 0:00:26]} 31. Kg2 {[%emt 0:00:57]} f5 {[%emt 0:02:24]} 32. f4 {[%emt 0:00:40]} Bc5 {[%emt 0:02:07]} 33. Nd1 {[%emt 0:00:22]} Bc6 {[%emt 0:00:42]} 34. Kf1 {[%emt 0:00:55]} d4 {[%emt 0:00:43]} 35. Nf2 {[%emt 0:00:31]} Bb5+ {[%emt 0:00:56]} 36. Kg2 {[%emt 0:00:24]} Rb3 {[%emt 0:00:38]} 37. Rd1 {[%emt 0:00:52]} d3 {[%emt 0:00:58]} 38. h3 {[%emt 0:00:28]} Bd4 {[%emt 0:00:20]} 39. Rd2 {[%emt 0:00:10]} Be3 {[%emt 0:06:22]} 40. Rd1 {[%emt 0:00:24]} Bxc1 {[%emt 0:03:48]} 41. Rxc1 {[%emt 0:00:04]} Rxb2 {[%emt 0:00:13]} 42. Rc7+ {[%emt 0:00:54]} Kf8 {[%emt 0:00:41]} 43. Rc8+ {[%emt 0:00:14]} Ke7 {[%emt 0:00:13]} 44. Rc7+ {[%emt 0:00:11]} Kd8 {[%emt 0:00:07]} 45. Ra7 {[%emt 0:00:27]} Re2 {[%emt 0:00:37]} 46. Ra1 {[%emt 0:00:47]} Kc7 {[%emt 0:01:34]} 47. Rd1 {[%emt 0:01:24]} d2 {[%emt 0:00:43]} 48. Rb1 {[%emt 0:00:39]} Kc6 {[%emt 0:00:49]} 49. Ra1 {[%emt 0:00:21]} Ba4 {[%emt 0:01:30]} 50. Rxa4 {[%emt 0:00:15]} Rxf2+ {[%emt 0:00:21]} 51. Kxf2 {[%emt 0:00:07]} d1=Q {[%emt 0:00:16]} 52. Rc4+ {[%emt 0:00:08]} Kd5 {[%emt 0:00:45]} 53. Rc3 0-1

[Event "LAT-ch Women 2017"]
[Site "Riga"]
[Date "2017.10.07"]
[Round "3"]
[White "Krumina, Linda"]
[Black "Ungure, Liga"]
[Result "1-0"]
[ECO "E94"]
[WhiteElo "2096"]
[BlackElo "1923"]
[Annotator "NA RC"]
[PlyCount "73"]
[EventDate "2017.??.??"]
[EventType "swiss"]
[EventCountry "LAT"]
[SourceTitle "playchess.com"]
[Source "ChessBase"]
[SourceQuality "1"]
[TimeControl "5400+30"]

1. Nf3 {[%emt 0:00:00]} Nf6 {[%emt 0:00:26]} 2. c4 {[%emt 0:00:00]} g6 {[%emt 0:00:42]} 3. d4 {[%emt 0:00:00]} Bg7 {[%emt 0:00:06]} 4. Nc3 {[%emt 0:00:01]} O-O {[%emt 0:00:07]} 5. e4 {[%emt 0:00:05]} d6 {[%emt 0:00:12]} 6. Be2 {[%emt 0:00:13]} e5 {[%emt 0:00:30]} 7. O-O {[%emt 0:00:10]} exd4 {[%emt 0:02:02]} 8. Nxd4 {[%emt 0:02:03]} Re8 {[%emt 0:00:20]} 9. f3 {[%emt 0:00:13]} Nc6 {[%emt 0:02:06]} 10. Be3 {[%emt 0:02:17]} Nh5 {[%emt 0:04:03]} 11. Nxc6 {[%emt 0:12:37]} bxc6 {[%emt 0:02:18]} 12. Qd2 {[%emt 0:02:55]} Qe7 {[%emt 0:11:06]} 13. Rad1 {[%emt 0:21:09] E94: King's Indian: Classical: 6 Be2 e5 7 0-0: Various Black 7th moves} f5 {[%emt 0:07:26]} 14. Bg5 {[%emt 0:01:48]} (14. Rfe1 Nf6 15. Bd3 fxe4 16. Nxe4 Bf5 17. Nf2 Bxd3 18. Nxd3 Qf7 19. b3 a5 20. Qc2 Nd7 {1-0 (51) Lenderman,A (2582)-Naroditsky,D (2543) Saint Louis 2014}) 14... Nf6 {[%emt 0:09:23]} 15. c5 $146 {[%emt 0:11:23]} ({Predecessor:} 15. Rfe1 fxe4 16. fxe4 Qe5 17. Bf4 Qc5+ 18. Be3 Qa5 19. Bf3 Ng4 20. Bd4 Ne5 21. Be2 {½-½ (43) Klaric,A (1840)-Plenkovic,Z (2346) Stobrec 2008}) 15... dxc5 {[%emt 0:14:58]} (15... d5 $1 $11 {hält das Gleichgewicht.}) 16. exf5 {[%emt 0:02:44]} Bxf5 {[%emt 0:04:21]} 17. Bc4+ {[%emt 0:02:02]} Kh8 {[%emt 0:03:32]} 18. g4 {[%emt 0:08:53]} Rad8 {[%emt 0:04:44]} 19. Qf4 {[%emt 0:02:37]} Rd4 $1 {[%emt 0:01:34]} 20. Rxd4 {[%emt 0:02:01]} cxd4 {[%emt 0:00:02]} 21. Ne4 {[%emt 0:02:41]} Bxe4 {[%emt 0:06:08]} 22. fxe4 {[%emt 0:00:10]} Rf8 {[%emt 0:01:51]} 23. e5 {[%emt 0:03:28]} Nd5 {[%emt 0:01:38]} 24. Bxe7 {[%emt 0:04:43]} Rxf4 {[%emt 0:00:21]} 25. Rxf4 {[%emt 0:01:27]} Nxf4 {[%emt 0:00:11] [#]} 26. e6 $1 {[%emt 0:01:51]} d3 {[%emt 0:10:34] [#]} 27. Bb4 $1 {[%emt 0:04:03]} Bf6 $2 {[%emt 0:00:40]} (27... Nxe6 28. Bxe6 Bxb2) 28. e7 {[%emt 0:00:43]} Ne2+ {[%emt 0:04:04]} 29. Kf1 {[%emt 0:01:26]} Bxe7 {[%emt 0:00:46]} 30. Bxe7 {[%emt 0:00:14]} Kg7 {[%emt 0:00:57]} 31. Bxd3 $18 {[%emt 0:00:25]} Nf4 {[%emt 0:01:01]} 32. Be4 {[%emt 0:01:26]} Nd5 {[%emt 0:02:01]} 33. Bc5 {[%emt 0:00:34]} a6 {[%emt 0:00:10]} 34. g5 {[%emt 0:01:36]} Kf7 {[%emt 0:00:31]} 35. h4 {[%emt 0:01:42]} Ke6 {[%emt 0:00:22]} 36. Kf2 {[%emt 0:02:25]} Ke5 {[%emt 0:00:25]} 37. Kf3 {[%emt 0:00:57]} 1-0

[Event "LAT-ch Women 2017"]
[Site "Riga"]
[Date "2017.10.07"]
[Round "3"]
[White "Maklakova, Nellija"]
[Black "Limanovska, Elizabete"]
[Result "1-0"]
[ECO "A17"]
[WhiteElo "1800"]
[BlackElo "1972"]
[Annotator "NA RC"]
[PlyCount "63"]
[EventDate "2017.??.??"]
[EventType "swiss"]
[EventCountry "LAT"]
[SourceTitle "playchess.com"]
[Source "ChessBase"]
[SourceQuality "1"]
[TimeControl "5400+30"]

{[%evp 10,48,-8,32767,-5,-19,-19,-13,-4,-32,-37,-41,32767,-72,-81,32767,32767,32767,32767,32767,32767,0,32767,32767,2,8,1,4,16,32767,32767,0,14,0,7,21,898,25,118,116,199]} 1. c4 {[%emt 0:00:00]} Nf6 {[%emt 0:00:11]} 2. Nc3 {[%emt 0:00:00]} e6 {[%emt 0:01:11]} 3. g3 {[%emt 0:00:16]} d5 {[%emt 0:03:10]} 4. cxd5 {[%emt 0:00:20]} exd5 {[%emt 0:00:58]} 5. d4 {[%emt 0:01:43]} c6 {[%emt 0:04:27]} 6. Bg2 {[%emt 0:05:50]} Be7 {[%emt 0:01:27]} 7. Nf3 {[%emt 0:00:55]} Bf5 {[%emt 0:11:06]} 8. O-O {[%emt 0:02:08] LiveBook: 8 Games} h6 {[%emt 0:02:14]} 9. a3 {[%emt 0:06:04]} O-O {[%emt 0:03:26]} 10. b4 {[%emt 0:02:31] A17: English Opening: 1...Nf6 with ...Bb4} (10. Nh4 Bh7 11. Bh3 Re8 12. Bf5 Nbd7 13. Bxh7+ Nxh7 14. Nf5 Bf8 15. f3 Qf6 16. e4 Qe6 17. g4 dxe4 18. fxe4 {½-½ (67) Pupke,P (2289)-Sarak,M (2243) GER email 2008}) 10... Ne4 {[%emt 0:05:25]} 11. Na4 $146 {[%emt 0:06:57]} ({Predecessor:} 11. Bb2 a5 12. bxa5 Nd7 13. Nxe4 Bxe4 14. Bc3 Bd6 15. Nd2 Bxg2 16. Kxg2 Nf6 17. e3 Bc7 {½-½ (44) Bedic,Z (2186)-Gajic,M (2127) Croatia 2011}) 11... a5 {[%emt 0:10:20]} 12. Bd2 {[%emt 0:18:46]} Nxd2 {[%emt 0:12:20]} 13. Qxd2 {[%emt 0:01:02]} axb4 {[%emt 0:00:20]} 14. axb4 {[%emt 0:00:31]} Nd7 {[%emt 0:19:28]} 15. Qf4 {[%emt 0:12:18]} Bh7 {[%emt 0:02:23]} 16. Nc5 {[%emt 0:03:14]} Rxa1 {[%emt 0:05:32]} 17. Rxa1 {[%emt 0:00:18]} b6 {[%emt 0:00:04]} 18. Nxd7 {[%emt 0:02:37]} Qxd7 {[%emt 0:00:04]} 19. Ne5 {[%emt 0:11:58]} Qe6 {[%emt 0:02:43]} 20. Qc1 {[%emt 0:04:49]} Rc8 {[%emt 0:01:35]} 21. Ra7 {[%emt 0:01:24]} f6 {[%emt 0:06:25]} 22. Nd7 {[%emt 0:06:26]} Bxb4 $2 {[%emt 0:01:51] [#]} (22... Rd8 $11 23. Nxb6 Rb8) 23. Nxb6 $2 {[%emt 0:00:26]} (23. Bxd5 $1 $18 {[%mdl 512]} Qxd5 {[#]} (23... cxd5 24. Qxc8+) 24. Nxf6+ $1 {[%mdl 512]} gxf6 25. Qxh6) 23... Re8 {[%emt 0:01:35] [#]} (23... Rd8 $1 $14) 24. e3 $1 {[%emt 0:01:52]} Bd3 $18 {[%emt 0:00:59]} (24... Be4 $16) 25. Qd1 {[%emt 0:02:14]} Bb5 {[%emt 0:00:43]} 26. Qh5 {[%emt 0:00:20]} Kh7 {[%emt 0:00:43]} 27. Bh3 {[%emt 0:01:22]} Be2 {[%emt 0:00:23]} 28. Bf5+ {[%emt 0:00:29]} Kh8 {[%emt 0:00:20]} 29. Qg6 {[%emt 0:00:12]} Qg8 {[%emt 0:00:05]} 30. Rxg7 {[%emt 0:01:57]} Qxg7 {[%emt 0:00:05]} 31. Qxe8+ {[%emt 0:00:04]} Qf8 {[%emt 0:01:10]} 32. Qxc6 {[%emt 0:01:22]} 1-0

[Event "LAT-ch Women 2017"]
[Site "Riga"]
[Date "2017.10.07"]
[Round "3"]
[White "Golsta, Madara"]
[Black "Lazdina, Ingrida"]
[Result "1/2-1/2"]
[ECO "C10"]
[WhiteElo "1716"]
[BlackElo "1937"]
[Annotator "NA RC"]
[PlyCount "63"]
[EventDate "2017.??.??"]
[EventType "swiss"]
[EventCountry "LAT"]
[SourceTitle "playchess.com"]
[Source "ChessBase"]
[SourceQuality "1"]
[TimeControl "5400+30"]

{[%evp 10,63,43,32767,32767,32767,32767,-19,32767,32767,32767,32767,-4,-11,-10,32767,-12,-22,-5,-25,20,0,33,13,32767,32767,32767,32767,32767,66,79,64,66,32767,79,62,92,112,32767,13,112,32767,118,48,58,64,32767,75,11,84,84,32767,0,0,9,16]} 1. e4 {[%emt 0:00:00]} e6 {[%emt 0:00:08]} 2. d4 {[%emt 0:00:34]} d5 {[%emt 0:00:06]} 3. Nc3 {[%emt 0:00:41]} dxe4 {[%emt 0:01:18]} 4. Nxe4 {[%emt 0:00:34]} Nd7 {[%emt 0:02:37]} 5. Nf3 {[%emt 0:05:55]} Ngf6 {[%emt 0:00:19]} 6. Ng3 {[%emt 0:02:41]} Be7 {[%emt 0:02:32]} 7. Bd3 {[%emt 0:00:29]} O-O {[%emt 0:00:53]} 8. O-O {[%emt 0:02:08]} c5 {[%emt 0:00:54]} 9. c3 {[%emt 0:01:20]} Qc7 {[%emt 0:03:11]} 10. Be3 {[%emt 0:03:13] C10: French with 3 Nc3: Unusual Black 3rd moves and 3...dxe4} (10. Re1 b6 11. Qe2 Bb7 12. h4 Bxf3 13. Qxf3 cxd4 14. cxd4 Bd6 15. Ne4 Nxe4 16. Bxe4 Rac8 17. Be3 Qd8 18. g3 Nf6 19. Bg5 {½-½ (19) Kuchynka,L (2317)-Pala,V (2345) Czechia 2009}) 10... c4 $146 {[%emt 0:04:55]} ({Predecessor:} 10... b6 11. Qd2 Bb7 12. Bf4 Bd6 13. Bxd6 Qxd6 14. Ng5 h6 15. N5e4 Qc7 16. dxc5 Nxe4 17. Bxe4 Bxe4 18. Nxe4 Nxc5 19. Nxc5 Qxc5 {1-0 (43) Denzinger,K (1705)-Luethi,M (1725) Weggis 2004}) 11. Bc2 {[%emt 0:02:18]} b5 {[%emt 0:04:42]} 12. Qe2 {[%emt 0:11:59]} Nd5 {[%emt 0:06:20]} 13. Rfe1 {[%emt 0:06:10]} a5 {[%emt 0:03:18]} 14. a3 {[%emt 0:05:57]} Ba6 {[%emt 0:04:47]} 15. Bg5 {[%emt 0:02:21]} Bd6 {[%emt 0:09:18]} 16. Ne5 {[%emt 0:04:53]} Nxe5 {[%emt 0:07:48]} 17. dxe5 {[%emt 0:00:34]} Be7 {[%emt 0:00:17]} 18. Qh5 {[%emt 0:02:02]} g6 {[%emt 0:01:52]} 19. Qh6 {[%emt 0:00:36]} Bxg5 {[%emt 0:06:31]} 20. Qxg5 {[%emt 0:00:27]} Qe7 {[%emt 0:01:41]} 21. Qh6 {[%emt 0:01:14]} f5 {[%emt 0:01:48]} 22. exf6 {[%emt 0:14:53]} Qxf6 {[%emt 0:00:10]} 23. Ne4 {[%emt 0:00:18]} Qg7 {[%emt 0:00:34]} 24. Qxg7+ {[%emt 0:00:33]} Kxg7 {[%emt 0:00:04]} 25. Nc5 {[%emt 0:00:18]} Bc8 {[%emt 0:08:48]} 26. Nxe6+ {[%emt 0:02:19]} Bxe6 {[%emt 0:00:04]} 27. Rxe6 {[%emt 0:00:06]} Rfe8 {[%emt 0:05:42]} 28. Rae1 {[%emt 0:00:44]} Rxe6 {[%emt 0:00:24]} 29. Rxe6 {[%emt 0:00:05]} b4 {[%emt 0:00:56]} 30. Rc6 {[%emt 0:07:25]} b3 {[%emt 0:11:14]} 31. Be4 {[%emt 0:02:36]} Rd8 $1 {[%emt 0:01:05]} 32. g3 $11 {[%emt 0:10:14]} 1/2-1/2

[Event "LAT-ch Women 2017"]
[Site "Riga"]
[Date "2017.10.07"]
[Round "3"]
[White "Vainovska, Valentina"]
[Black "Parhomenko, Margarita"]
[Result "1/2-1/2"]
[ECO "A84"]
[WhiteElo "1676"]
[BlackElo "1919"]
[Annotator "NA RC"]
[PlyCount "116"]
[EventDate "2017.??.??"]
[EventType "swiss"]
[EventCountry "LAT"]
[SourceTitle "playchess.com"]
[Source "ChessBase"]
[SourceQuality "1"]
[TimeControl "5400+30"]

{[%evp 8,84,39,27,32767,12,30,32767,27,27,32,26,27,21,32767,27,35,29,55,50,41,38,46,-11,0,32767,32767,32767,32767,-82,32767,-75,32767,-77,32767,-61,-84,-91,-94,-89,32767,32767,32767,32767,32767,32767,-73,-77,32767,-90,-86,-106,-84,-97,-71,-67,-73,-67,32767,-300,-314,-1414,-1946,-29977,-220,-198,-243,-289,-296,-363,-446,-405,-392,-489,-482,-417,-719,-687,-24]} 1. d4 {[%emt 0:00:00]} f5 {[%emt 0:00:04]} 2. c4 {[%emt 0:04:35]} e6 {[%emt 0:00:22]} 3. Nc3 {[%emt 0:00:26]} Nf6 {[%emt 0:00:15]} 4. g3 {[%emt 0:03:18]} c6 {[%emt 0:01:18]} 5. Bg2 {[%emt 0:03:17]} d5 {[%emt 0:00:14]} 6. cxd5 {[%emt 0:06:29]} exd5 {[%emt 0:01:00] LiveBook: 16 Games} 7. Nf3 {[%emt 0:04:48]} Bd6 {[%emt 0:01:15]} 8. Bf4 {[%emt 0:05:17] A90: Dutch Defence: Miscellaneous and Modern Stonewall (with ...Bd6)} (8. O-O O-O 9. e3 Ne4 10. Ne2 Qe7 11. Nf4 b6 12. Nd3 Ba6 13. b3 Nd7 14. Bb2 Rac8 15. Re1 Rf6 16. Rc1 Rh6 17. Re2 {½-½ (65) Lodhi,M (2358)-Smerdon,D (2507) Istanbul 2012}) 8... Bxf4 {[%emt 0:03:35]} 9. gxf4 {[%emt 0:00:22]} Ne4 {[%emt 0:03:00]} 10. Qc2 {[%emt 0:10:51]} Nd7 {[%emt 0:05:49]} 11. e3 {[%emt 0:03:07]} Ndf6 {[%emt 0:02:46]} 12. Ne5 {[%emt 0:01:27]} Nxc3 $146 {[%emt 0:04:32]} ({Predecessor:} 12... Qa5 13. O-O Nxc3 14. bxc3 O-O 15. c4 Be6 {½-½ (29) Hajek,J (2029)-Hybl,V (1813) Chrudim 2003}) 13. bxc3 {[%emt 0:01:52]} Ng4 {[%emt 0:00:49]} 14. h3 {[%emt 0:05:14]} Nxe5 {[%emt 0:00:54]} 15. fxe5 {[%emt 0:03:04]} (15. dxe5 $14 Be6 16. Rb1) 15... f4 {[%emt 0:03:19]} 16. exf4 {[%emt 0:06:01]} O-O {[%emt 0:00:35]} 17. Qd2 {[%emt 0:03:24]} Qh4 {[%emt 0:02:11]} 18. Qe3 {[%emt 0:01:10]} Be6 {[%emt 0:01:34]} 19. Rb1 {[%emt 0:01:38]} b6 {[%emt 0:01:26]} 20. Qg3 {[%emt 0:02:23]} Qxf4 {[%emt 0:01:02]} 21. Qxf4 {[%emt 0:03:19]} Rxf4 {[%emt 0:00:13]} 22. Rb2 {[%emt 0:01:32]} Raf8 {[%emt 0:00:45]} 23. O-O {[%emt 0:06:40]} g5 {[%emt 0:07:09]} 24. Re1 {[%emt 0:03:45]} h5 {[%emt 0:01:07]} 25. Re3 {[%emt 0:01:04]} Kg7 {[%emt 0:02:08]} 26. a4 {[%emt 0:01:22]} Kg6 {[%emt 0:00:38]} 27. Bf1 {[%emt 0:01:49]} h4 {[%emt 0:06:20]} 28. Bd3+ {[%emt 0:00:36]} Kh6 {[%emt 0:00:50]} 29. a5 {[%emt 0:02:11]} b5 {[%emt 0:00:21]} 30. Kg2 {[%emt 0:01:49]} g4 {[%emt 0:01:33]} 31. hxg4 {[%emt 0:00:23]} Rxg4+ {[%emt 0:00:22]} 32. Kh2 {[%emt 0:03:00]} Kg5 {[%emt 0:05:06]} 33. f3 $2 {[%emt 0:05:09]} (33. Bf1 $15 Rgf4 34. Kg1) 33... Rg3 {[%emt 0:06:09]} 34. Be2 $2 {[%emt 0:01:56]} (34. Rg2 Kf4 35. Re1) 34... Kf4 {[%emt 0:00:26]} 35. Rd3 {[%emt 0:00:12]} Rfg8 $2 {[%emt 0:00:59]} (35... Rh3+ 36. Kg2 Rg8+ 37. Kf2 Rh2+ 38. Ke1 Rg1+ 39. Kd2 h3) 36. Bf1 {[%emt 0:00:42]} Bf5 {[%emt 0:04:28]} 37. Rdd2 {[%emt 0:00:58]} (37. Rd1 $142) 37... Rxf3 {[%emt 0:01:58]} 38. Rf2 {[%emt 0:00:58]} (38. Bg2 {is a better defense.} Rxc3 39. Rf2+ Kg5 40. Bf1) 38... Rgg3 {[%emt 0:00:50]} 39. Bg2 {[%emt 0:00:53]} Rxf2 {[%emt 0:01:06]} 40. Rxf2+ {[%emt 0:00:09]} Kg4 {[%emt 0:00:36]} 41. e6 {[%emt 0:01:04]} Bxe6 {[%emt 0:01:55]} 42. Rf6 {[%emt 0:00:41]} Re3 $11 {[%emt 0:01:55]} (42... Bf5 $19 43. Rxc6 Be4 44. Bxe4 dxe4) 43. Rxe6 {[%emt 0:00:45]} Rxe6 {[%emt 0:00:32]} 44. Bh3+ {[%emt 0:00:06]} Kf4 {[%emt 0:00:26]} 45. Bxe6 {[%emt 0:00:11]} Ke3 {[%emt 0:06:22]} 46. Bd7 {[%emt 0:00:15]} Kd3 {[%emt 0:01:04]} 47. Bxc6 {[%emt 0:00:09]} Kxc3 {[%emt 0:00:59]} 48. Bxb5 {[%emt 0:01:08]} Kxd4 {[%emt 0:00:26]} 49. Kh3 {[%emt 0:00:21]} Kc3 {[%emt 0:00:29]} 50. Be2 {[%emt 0:02:25]} d4 {[%emt 0:00:39]} 51. Kxh4 {[%emt 0:00:22]} d3 {[%emt 0:00:15]} 52. Bf3 {[%emt 0:00:47]} Kb4 {[%emt 0:01:23]} 53. a6 {[%emt 0:00:21]} Kb5 {[%emt 0:00:33]} 54. Kg3 {[%emt 0:00:13]} Kxa6 {[%emt 0:00:38]} 55. Kf2 {[%emt 0:00:18]} Kb5 {[%emt 0:00:48]} 56. Ke3 {[%emt 0:00:25]} Kc4 {[%emt 0:00:20]} 57. Kd2 {[%emt 0:00:29]} Kd4 {[%emt 0:00:25]} 58. Bc6 {[%emt 0:00:59]} Ke5 1/2-1/2

[Event "LAT-ch Women 2017"]
[Site "Riga"]
[Date "2017.10.07"]
[Round "3"]
[White "Zalcmane, Vija"]
[Black "Sarnovska, Eira"]
[Result "0-1"]
[WhiteElo "1533"]
[BlackElo "1727"]
[Annotator "NA RC"]
[PlyCount "96"]
[EventDate "2017.??.??"]
[EventType "swiss"]
[EventCountry "LAT"]
[SourceTitle "playchess.com"]
[Source "ChessBase"]
[SourceQuality "1"]
[TimeControl "5400+30"]

1. c4 {[%emt 0:00:39]} e5 {[%emt 0:00:12]} 2. Nc3 {[%emt 0:00:13]} Nf6 {[%emt 0:00:22]} 3. g3 {[%emt 0:00:21]} Bb4 {[%emt 0:00:51]} 4. Bg2 {[%emt 0:00:33]} d6 {[%emt 0:01:00]} 5. Nf3 {[%emt 0:00:36]} O-O {[%emt 0:00:43]} 6. O-O {[%emt 0:00:12]} Nc6 {[%emt 0:01:06]} 7. a3 {[%emt 0:01:50]} Bxc3 {[%emt 0:00:54]} 8. bxc3 {[%emt 0:00:46]} Be6 {[%emt 0:00:46]} 9. d3 {[%emt 0:01:09]} h6 {[%emt 0:00:24]} 10. h3 {[%emt 0:00:17]} Nh7 {[%emt 0:04:51]} 11. Rb1 {[%emt 0:02:23]} Rb8 {[%emt 0:00:28]} 12. e3 {[%emt 0:04:00]} f5 {[%emt 0:03:49]} 13. Nh2 {[%emt 0:04:40]} Qd7 {[%emt 0:16:36]} 14. f4 {[%emt 0:05:05]} Nf6 {[%emt 0:02:03]} 15. Nf3 {[%emt 0:01:58]} Qf7 {[%emt 0:09:16]} 16. fxe5 {[%emt 0:06:25]} dxe5 {[%emt 0:00:28]} 17. Nh4 {[%emt 0:01:40]} Rfd8 {[%emt 0:13:11]} 18. Qe2 {[%emt 0:15:51]} e4 {[%emt 0:03:23]} 19. Qf2 {[%emt 0:04:12]} exd3 {[%emt 0:04:19]} 20. Nxf5 {[%emt 0:02:30]} Bxf5 {[%emt 0:05:04]} 21. Qxf5 {[%emt 0:00:52]} d2 {[%emt 0:01:08]} 22. Bxd2 {[%emt 0:01:31]} Rxd2 {[%emt 0:00:57]} 23. Bxc6 {[%emt 0:00:24]} Qxc4 {[%emt 0:02:21]} 24. Bxb7 {[%emt 0:11:55]} Rbd8 {[%emt 0:00:51]} 25. Rbe1 {[%emt 0:04:42]} Qxc3 {[%emt 0:03:25]} 26. Qg6 {[%emt 0:02:19]} Rb2 {[%emt 0:03:07]} 27. Ba6 {[%emt 0:08:26]} Rdd2 {[%emt 0:03:27]} 28. Rxf6 {[%emt 0:07:24]} Rg2+ {[%emt 0:02:18]} 29. Kf1 {[%emt 0:00:48]} Qxf6+ {[%emt 0:00:41]} 30. Qxf6 {[%emt 0:00:18]} gxf6 {[%emt 0:00:07]} 31. Rc1 {[%emt 0:04:25]} Rh2 {[%emt 0:01:30]} 32. Bc4+ {[%emt 0:04:18]} Kf8 {[%emt 0:00:58]} 33. Bd5 {[%emt 0:00:06]} Rbd2 {[%emt 0:02:21]} 34. Bb7 {[%emt 0:02:02]} Ra2 {[%emt 0:01:05]} 35. Kg1 {[%emt 0:00:30]} Rhb2 {[%emt 0:00:58]} 36. Be4 {[%emt 0:01:40]} Rxa3 {[%emt 0:00:10]} 37. g4 {[%emt 0:00:41]} Rxe3 {[%emt 0:00:11]} 38. Bf5 {[%emt 0:00:23]} Rg3+ {[%emt 0:01:24]} 39. Kf1 {[%emt 0:00:21]} Rxh3 {[%emt 0:00:19]} 40. Kg1 {[%emt 0:00:29]} Ra3 {[%emt 0:01:05]} 41. Kh1 {[%emt 0:00:56]} a5 {[%emt 0:00:19]} 42. Kg1 {[%emt 0:00:34]} a4 {[%emt 0:00:04]} 43. Bd7 {[%emt 0:00:11]} c5 {[%emt 0:00:32]} 44. Kf1 {[%emt 0:00:16]} c4 {[%emt 0:00:22]} 45. Ke1 {[%emt 0:00:15]} c3 {[%emt 0:00:56]} 46. Bf5 {[%emt 0:00:07]} Rh2 {[%emt 0:03:36]} 47. Be4 {[%emt 0:00:28]} Raa2 {[%emt 0:00:28]} 48. Kd1 {[%emt 0:01:39]} Rad2+ {[%emt 0:00:49]} 0-1